fUSD/lending_fUSD_20250217
["ID","MTS","AMOUNT","RATE_DAILY","PERIOD"]
[353431939,1739825438356,-176.26,0.0001378,2]
[353431941,1739825438366,-444.03,0.0001378,2]
[353431944,1739825438376,-500.0,0.0001378,2]
[353431946,1739825438386,-462.5,0.0001378,2]
[353431947,1739825438395,-157.34,0.0001378,2]
[353431949,1739825438405,-423.42,0.0001378,2]
[353431951,1739825438414,-500.0,0.0001378,2]
[353431953,1739825438424,-500.0,0.0001378,2]
[353431955,1739825438433,-500.0,0.0001378,2]
[353431957,1739825438443,-500.0,0.0001378,2]
[353431959,1739825438453,-500.0,0.0001378,2]
[353431961,1739825438462,-500.0,0.0001378,2]
[353431963,1739825438473,-500.0,0.0001378,2]
[353431965,1739825438483,-500.0,0.0001378,2]
[353431967,1739825438492,-500.0,0.0001378,2]
[353431969,1739825438502,-431.34,0.0001378,2]
[353431971,1739825438512,-501.39,0.0001378,2]
[353431973,1739825438521,-500.0,0.0001378,2]
[353431975,1739825438531,-500.0,0.0001378,2]
[353431977,1739825438541,-500.0,0.0001378,2]
[353431979,1739825438550,-500.0,0.0001378,2]
[353431981,1739825438559,-489.03,0.0001378,2]
[353431983,1739825438569,-500.0,0.0001378,2]
[353431985,1739825438578,-321.19341195,0.0001378,2]
[353431987,1739825438587,-307.27,0.0001378,2]
[353431989,1739825438598,-998.94,0.0001378,2]
[353431991,1739825438607,-275.36,0.0001378,2]
[353431993,1739825438616,-349.34289061,0.0001378,2]
[353431995,1739825438628,-297.74710939,0.0001378,2]
[353431997,1739825438637,-500.0,0.0001378,2]
[353431999,1739825438647,-186.02034067,0.0001378,2]
[353432001,1739825438659,-75.03965933,0.0001378,2]
[353432003,1739825438669,-500.0,0.0001378,2]
[353432005,1739825438678,-500.0,0.0001378,2]
[353432007,1739825438688,-824.59,0.0001378,2]
[353432009,1739825438698,-287.57,0.0001378,2]
[353432011,1739825438707,-294.36,0.000138,2]
[353432013,1739825438718,-500.0,0.00013861,2]
[353432015,1739825438728,-282.61,0.00013861,2]
[353432017,1739825438738,-597.06,0.00013861,2]
[353432019,1739825438749,-163.475659,0.00013863,2]
[353432021,1739825438759,-258.97,0.00013863,2]
[353432023,1739825438769,-500.0,0.00013863,2]
[353432025,1739825438779,-500.0,0.00013863,2]
[353432028,1739825438790,-202.81,0.00013863,2]
[353432030,1739825438799,-500.0,0.00013863,2]
[353432031,1739825438808,-252.83386051,0.00013863,2]
[353432033,1739825438817,-500.0,0.00013863,2]
[353432035,1739825438828,-458.36,0.00013863,2]
[353432037,1739825438838,-298.71,0.00013863,2]
[353432039,1739825438847,-1219.47,0.00013863,2]
[353432041,1739825438856,-377.95,0.00013863,2]
[353432043,1739825438866,-474.76,0.00013863,2]
[353432045,1739825438875,-216.9,0.00013863,2]
[353432047,1739825438884,-228.01,0.00013863,2]
[353432049,1739825438894,-269.48,0.00013863,2]
[353432051,1739825438904,-517.24,0.00013863,2]
[353432053,1739825438913,-500.0,0.00013863,2]
[353432056,1739825438923,-373.34,0.00013863,2]
[353432057,1739825438933,-500.0,0.00013863,2]
[353432060,1739825438942,-258.75,0.00013863,2]
[353432061,1739825438952,-500.0,0.00013863,2]
[353432068,1739825439003,-500.0,0.00013863,2]
[353432070,1739825439013,-475.84,0.00013863,2]
[353432071,1739825439022,-284.95,0.00013863,2]
[353432073,1739825439031,-169.46,0.00013863,2]
[353432075,1739825439041,-206.24,0.00013863,2]
[353432078,1739825439051,-613.35,0.00013863,2]
[353432079,1739825439060,-500.0,0.00013863,2]
[353432081,1739825439069,-500.0,0.00013863,2]
[353432083,1739825439079,-500.0,0.00013863,2]
[353432085,1739825439088,-998.94,0.00013863,2]
[353432088,1739825439099,-176.82,0.00013863,2]
[353432090,1739825439108,-408.49,0.00013863,2]
[353432091,1739825439117,-500.0,0.00013863,2]
[353432093,1739825439126,-824.59,0.00013863,2]
[353432096,1739825439135,-640.250001,0.00013944,2]
[353432097,1739825439145,-159.476198,0.00013945,2]
[353432100,1739825439154,-163.475659,0.00013945,2]
[353432102,1739825439164,-253.52175151,0.00013945,2]
[353432104,1739825439173,-500.0,0.00013945,2]
[353432105,1739825439183,-500.0,0.00013945,2]
[353432107,1739825439192,-71.64569604,0.00013945,2]
[353432109,1739825439204,-428.35430396,0.00013945,2]
[353432111,1739825439214,-1219.47,0.00013945,2]
[353432113,1739825439226,-500.0,0.00013945,2]
[353432115,1739825439235,-500.0,0.00013945,2]
[353432118,1739825439245,-500.0,0.00013945,2]
[353432119,1739825439255,-500.0,0.00013945,2]
[353432121,1739825439264,-500.0,0.00013945,2]
[353432123,1739825439273,-180.97,0.00013945,2]
[353432125,1739825439283,-500.0,0.00013945,2]
[353432127,1739825439292,-998.94,0.00013945,2]
[353432129,1739825439302,-500.0,0.00013945,2]
[353432132,1739825439311,-824.59,0.00013945,2]
[353432133,1739825439321,-650.0,0.00014,2]
[353432137,1739825439331,-570.25,0.00014027,2]
[353432138,1739825439340,-500.0,0.00014027,2]
[353432141,1739825439350,-500.0,0.00014027,2]
[353432142,1739825439359,-1219.47,0.00014027,2]
[353432144,1739825439368,-500.0,0.00014027,2]
[353432146,1739825439377,-500.0,0.00014027,2]
[353432148,1739825439386,-500.0,0.00014027,2]
[353432150,1739825439396,-500.0,0.00014027,2]
[353432152,1739825439406,-500.0,0.00014027,2]
[353432154,1739825439416,-500.0,0.00014027,2]
[353432156,1739825439425,-998.94,0.00014027,2]
[353432159,1739825439435,-500.0,0.00014027,2]
[353432160,1739825439444,-824.59,0.00014027,2]
[353432162,1739825439453,-500.53,0.00014056,2]
[353432164,1739825439462,-150.0,0.00014059,2]
[353432166,1739825439473,-500.0,0.00014109,2]
[353432169,1739825439483,-500.0,0.00014109,2]
[353432171,1739825439492,-1219.47,0.00014109,2]
[353432172,1739825439501,-500.0,0.00014109,2]
[353432174,1739825439511,-500.0,0.00014109,2]
[353432176,1739825439520,-500.0,0.00014109,2]
[353432178,1739825439529,-500.0,0.00014109,2]
[353432180,1739825439539,-431.91,0.00014109,2]
[353432182,1739825439548,-500.0,0.00014109,2]
[353432184,1739825439557,-998.94,0.00014109,2]
[353432186,1739825439567,-500.0,0.00014109,2]
[353432188,1739825439576,-824.59,0.00014109,2]
[353432190,1739825439586,-500.0,0.00014191,2]
[353432192,1739825439596,-500.0,0.00014191,2]
[353432194,1739825439605,-1219.47,0.00014191,2]
[353432196,1739825439614,-500.0,0.00014191,2]
[353432198,1739825439623,-500.0,0.00014191,2]
[353432200,1739825439633,-500.0,0.00014191,2]
[353432202,1739825439642,-500.0,0.00014191,2]
[353432204,1739825439651,-500.0,0.00014191,2]
[353432206,1739825439661,-998.94,0.00014191,2]
[353432208,1739825439670,-500.0,0.00014191,2]
[353432210,1739825439680,-824.59,0.00014191,2]
[353432212,1739825439690,-500.0,0.00014264,2]
[353432214,1739825439700,-500.0,0.00014264,2]
[353432216,1739825439710,-500.0,0.00014264,2]
[353432218,1739825439720,-500.0,0.00014273,2]
[353432220,1739825439730,-500.0,0.00014273,2]
[353432222,1739825439740,-1219.47,0.00014273,2]
[353432224,1739825439752,-500.0,0.00014273,2]
[353432226,1739825439761,-500.0,0.00014273,2]
[353432228,1739825439771,-500.0,0.00014273,2]
[353432230,1739825439781,-500.0,0.00014273,2]
[353432232,1739825439791,-500.0,0.00014273,2]
[353432234,1739825439800,-998.94,0.00014273,2]
[353432236,1739825439810,-500.0,0.00014273,2]
[353432238,1739825439819,-824.59,0.00014273,2]
[353432240,1739825439830,-500.0,0.00014356,2]
[353432242,1739825439840,-500.0,0.00014356,2]
[353432244,1739825439849,-1219.47,0.00014356,2]
[353432246,1739825439858,-500.0,0.00014356,2]
[353432248,1739825439868,-500.0,0.00014356,2]
[353432250,1739825439877,-500.0,0.00014356,2]
[353432252,1739825439886,-500.0,0.00014356,2]
[353432254,1739825439896,-500.0,0.00014356,2]
[353432256,1739825439905,-998.94,0.00014356,2]
[353432258,1739825439915,-500.0,0.00014356,2]
[353432259,1739825439924,-824.59,0.00014356,2]
[353432262,1739825439934,-1627.57759105,0.00014378,2]
[353432263,1739825439946,-150.0,0.0001442,2]
[353432265,1739825439956,-219.52153201,0.00014438,2]
[353432268,1739825439969,-280.47846799,0.00014438,2]
[353432270,1739825439981,-447.97153045,0.00014438,2]
[353432272,1739825439996,-52.02846955,0.00014438,2]
[353432274,1739825440006,-306.30638209,0.00014438,2]
[353432276,1739825440018,-913.16361791,0.00014438,2]
[353432278,1739825440029,-500.0,0.00014438,2]
[353432280,1739825440039,-500.0,0.00014438,2]
[353432282,1739825440049,-500.0,0.00014438,2]
[353432283,1739825440058,-500.0,0.00014438,2]
[353432285,1739825440068,-500.0,0.00014438,2]
[353432288,1739825440079,-998.94,0.00014438,2]
[353432289,1739825440088,-500.0,0.00014438,2]
[353432291,1739825440099,-824.59,0.00014438,2]
[353432293,1739825440113,-150.0,0.00014454,2]
[353432296,1739825440122,-3912.0,0.00014454,2]
[353432297,1739825440131,-321.00166041,0.00014502,2]
[353432299,1739825440141,-1135.1185993,0.00014504,2]
[353432301,1739825440150,-500.0,0.0001452,2]
[353432303,1739825440159,-500.0,0.0001452,2]
[353432306,1739825440169,-1219.47,0.0001452,2]
[353432307,1739825440178,-500.0,0.0001452,2]
[353432309,1739825440187,-500.0,0.0001452,2]
[353432311,1739825440196,-500.0,0.0001452,2]
[353432313,1739825440205,-500.0,0.0001452,2]
[353432315,1739825440215,-500.0,0.0001452,2]
[353432317,1739825440227,-998.94,0.0001452,2]
[353432319,1739825440236,-500.0,0.0001452,2]
[353432321,1739825440245,-824.59,0.0001452,2]
[353432323,1739825440254,-193.82722179,0.00014602,2]
[353432325,1739825440266,-306.17277821,0.00014602,2]
[353432327,1739825440276,-500.0,0.00014602,2]
[353432329,1739825440286,-1219.47,0.00014602,2]
[353432331,1739825440295,-500.0,0.00014602,2]
[353432333,1739825440305,-500.0,0.00014602,2]
[353432335,1739825440314,-500.0,0.00014602,2]
[353432337,1739825440323,-500.0,0.00014602,2]
[353432339,1739825440333,-500.0,0.00014602,2]
[353432341,1739825440342,-998.94,0.00014602,2]
[353432343,1739825440351,-477.79145095,0.00014602,2]
[353432345,1739825440360,-824.59,0.00014602,2]
[353432347,1739825440369,-509.45,0.00014683,2]
[353432349,1739825440379,-500.0,0.00014684,2]
[353432351,1739825440389,-189.52833429,0.00014684,2]
[353432353,1739825440398,-1219.47,0.00014684,2]
[353432355,1739825440413,-500.0,0.00014684,2]
[353432357,1739825440422,-500.0,0.00014684,2]
[353432359,1739825440432,-500.0,0.00014684,2]
[353432361,1739825440442,-500.0,0.00014684,2]
[353432363,1739825440452,-500.0,0.00014684,2]
[353432365,1739825440461,-998.94,0.00014684,2]
[353432367,1739825440471,-824.59,0.00014684,2]
[353432369,1739825440481,-500.0,0.00014767,2]
[353432371,1739825440490,-1219.47,0.00014767,2]
[353432373,1739825440499,-500.0,0.00014767,2]
[353432375,1739825440509,-481.70243944,0.00014767,2]
[353432377,1739825440518,-500.0,0.00014767,2]
[353432378,1739825440528,-500.0,0.00014767,2]
[353432379,1739825440537,-500.0,0.00014767,2]
[353432380,1739825440546,-998.94,0.00014767,2]
[353432381,1739825440556,-824.59,0.00014767,2]
[353432382,1739825440565,-150.0,0.0001478,2]
[353432383,1739825440574,-700.48,0.000148,31]
[353432384,1739825440583,-700.48,0.000148,31]
[353432385,1739825440593,-700.48,0.000148,31]
[353432386,1739825440602,-700.48,0.000148,31]
[353432387,1739825440611,-700.48,0.000148,31]
[353432388,1739825440621,-700.48,0.000148,31]
[353432390,1739825440630,-700.48,0.000148,31]
[353432392,1739825440639,-700.48,0.000148,31]
[353432394,1739825440648,-700.48,0.000148,31]
[353432396,1739825440658,-700.48,0.000148,31]
[353432398,1739825440667,-700.48,0.000148,31]
[353432400,1739825440676,-700.48,0.000148,31]
[353432402,1739825440685,-700.48,0.000148,31]
[353432403,1739825440693,-700.48,0.000148,31]
[353432405,1739825440703,-700.48,0.000148,31]
[353432407,1739825440712,-700.48,0.000148,31]
[353432409,1739825440723,-67942.3491163,0.000148,3]
[353432411,1739825440732,-500.0,0.00014848,2]
[353432413,1739825440744,-164.98994692,0.00014848,2]
[353432415,1739825440758,-488.18557031,0.00014848,2]
[353432417,1739825440768,-500.0,0.00014848,2]
[353432419,1739825440777,-428.0970991,0.00014848,2]
[353432421,1739825440788,-500.0,0.00014848,2]
[353432423,1739825440797,-500.0,0.00014848,2]
[353432425,1739825440806,-462.90242866,0.00014848,2]
[353432427,1739825440816,-500.0,0.00014849,2]
[353432429,1739825440827,-1219.47,0.00014849,2]
[353432431,1739825440836,-500.0,0.00014849,2]
[353432433,1739825440845,-274.48858083,0.00014849,2]
[353432435,1739825440854,-500.0,0.00014849,2]
[353432437,1739825440865,-500.0,0.00014849,2]
[353432439,1739825440874,-998.94,0.00014849,2]
[353432441,1739825440883,-824.59,0.00014849,2]
[353432443,1739825440892,-739.54964823,0.00014904,2]
[353432445,1739825440902,-200.0,0.00014911,2]
[353432447,1739825440911,-222.46554584,0.00014931,2]
[353432449,1739825440921,-1219.47,0.00014931,2]
[353432451,1739825440930,-500.0,0.00014931,2]
[353432453,1739825440939,-500.0,0.00014931,2]
[353432455,1739825440949,-500.0,0.00014931,2]
[353432457,1739825440959,-998.94,0.00014931,2]
[353432459,1739825440968,-824.59,0.00014931,2]
[353432461,1739825440977,-150.0,0.00014944,2]
[353432463,1739825440987,-256.0503324,0.00014953,2]
[353432465,1739825440997,-1627.57759105,0.00014993,2]
[353432467,1739825441008,-10612.0,0.00015,3]
[353432469,1739825441017,-496.28,0.00015011,2]
[353432471,1739825441026,-1219.47,0.00015013,2]
[353432473,1739825441036,-500.0,0.00015013,2]
[353432475,1739825441045,-500.0,0.00015013,2]
[353432477,1739825441055,-567.13829228,0.00015013,2]
[353432479,1739825441064,-998.94,0.00015013,2]
[353432481,1739825441072,-824.59,0.00015013,2]
[353432483,1739825441082,-500.0,0.00015068,2]
[353432485,1739825441091,-300.0,0.00015068,2]
[353432487,1739825441100,-1000.0,0.00015088,2]
[353432489,1739825441109,-1219.47,0.00015095,2]
[353432491,1739825441118,-500.0,0.00015095,2]
[353432493,1739825441129,-500.0,0.00015095,2]
[353432495,1739825441139,-998.94,0.00015095,2]
[353432497,1739825441148,-824.59,0.00015095,2]
[353432499,1739825441157,-2012.0,0.00015121,2]
[353432501,1739825441166,-150.0,0.00015141,2]
[353432503,1739825441176,-16985.5872791,0.0001516,3]
[353432505,1739825441186,-67942.3491163,0.0001517,3]
[353432507,1739825441196,-1219.47,0.00015178,2]
[353432509,1739825441205,-500.0,0.00015178,2]
[353432511,1739825441215,-500.0,0.00015178,2]
[353432513,1739825441225,-998.94,0.00015178,2]
[353432515,1739825441235,-824.59,0.00015178,2]
[353432517,1739825441244,-500.0,0.0001518,2]
[353432519,1739825441254,-500.0,0.0001518,2]
[353432521,1739825441263,-572.9,0.0001518,2]
[353432523,1739825441272,-500.0,0.0001518,2]
[353432524,1739825441282,-621.4,0.0001518,2]
[353432526,1739825441291,-500.0,0.0001518,2]
[353432528,1739825441300,-500.0,0.0001518,2]
[353432530,1739825441309,-500.0,0.0001518,2]
[353432532,1739825441319,-500.0,0.0001518,2]
[353432534,1739825441328,-508.03380309,0.0001518,2]
[353432536,1739825441338,-500.0,0.0001518,2]
[353432538,1739825441348,-500.0,0.0001518,2]
[353432540,1739825441357,-500.0,0.0001518,2]
[353432542,1739825441366,-500.0,0.0001518,2]
[353432544,1739825441375,-210.5014091,0.0001518,2]
[353432546,1739825441384,-500.0,0.0001518,2]
[353432548,1739825441393,-638.58,0.0001518,2]
[353432550,1739825441402,-500.0,0.0001518,2]
[353432552,1739825441412,-500.0,0.0001518,2]
[353432554,1739825441421,-500.0,0.0001518,2]
[353432556,1739825441430,-500.0,0.0001518,2]
[353432557,1739825441439,-500.0,0.0001518,2]
[353432559,1739825441448,-500.0,0.0001518,2]
[353432562,1739825441458,-500.0,0.0001518,2]
[353432563,1739825441468,-500.0,0.0001518,2]
[353432566,1739825441477,-540.46976453,0.0001518,2]
[353432568,1739825441487,-500.0,0.0001518,2]
[353432569,1739825441496,-500.0,0.0001518,2]
[353432571,1739825441505,-500.0,0.0001518,2]
[353432573,1739825441515,-500.0,0.0001518,2]
[353432575,1739825441526,-500.0,0.0001518,2]
[353432577,1739825441536,-500.0,0.0001518,2]
[353432579,1739825441545,-527.13064871,0.0001518,2]
[353432581,1739825441555,-166.37798312,0.0001518,2]
[353432583,1739825441564,-500.0,0.0001518,2]
[353432585,1739825441573,-500.0,0.0001518,2]
[353432587,1739825441582,-500.0,0.0001518,2]
[353432589,1739825441591,-500.0,0.0001518,2]
[353432591,1739825441600,-259.55928313,0.0001518,2]
[353432593,1739825441610,-506.57233409,0.0001518,2]
[353432595,1739825441620,-500.0,0.0001518,2]
[353432597,1739825441629,-506.29107573,0.0001518,2]
[353432599,1739825441639,-500.0,0.0001518,2]
[353432601,1739825441648,-500.0,0.0001518,2]
[353432603,1739825441657,-500.0,0.0001518,2]
[353432605,1739825441667,-500.0,0.0001518,2]
[353432607,1739825441676,-500.0,0.0001518,2]
[353432609,1739825441684,-500.0,0.0001518,2]
[353432611,1739825441694,-500.0,0.0001518,2]
[353432613,1739825441703,-500.0,0.0001518,2]
[353432615,1739825441712,-500.0,0.0001518,2]
[353432617,1739825441722,-500.0,0.0001518,2]
[353432619,1739825441731,-500.0,0.0001518,2]
[353432621,1739825441741,-500.0,0.0001518,2]
[353432623,1739825441755,-500.0,0.0001518,2]
[353432625,1739825441764,-500.0,0.0001518,2]
[353432627,1739825441774,-500.0,0.0001518,2]
[353432629,1739825441783,-500.0,0.0001518,2]
[353432631,1739825441792,-500.0,0.0001518,2]
[353432633,1739825441801,-644.87,0.0001518,2]
[353432635,1739825441810,-500.0,0.0001518,2]
[353432636,1739825441820,-500.0,0.0001518,2]
[353432638,1739825441831,-500.0,0.0001518,2]
[353432640,1739825441841,-500.0,0.0001518,2]
[353432642,1739825441851,-500.0,0.0001518,2]
[353432644,1739825441861,-500.0,0.0001518,2]
[353432646,1739825441870,-500.0,0.0001518,2]
[353432648,1739825441879,-590.85,0.0001518,2]
[353432650,1739825441889,-500.0,0.0001518,2]
[353432652,1739825441898,-500.0,0.0001518,2]
[353432654,1739825441908,-500.0,0.0001518,2]
[353432656,1739825441918,-500.0,0.0001518,2]
[353432658,1739825441927,-500.0,0.0001518,2]
[353432660,1739825441936,-500.0,0.0001518,2]
[353432662,1739825441947,-500.0,0.0001518,2]
[353432664,1739825441956,-500.0,0.0001518,2]
[353432667,1739825441966,-500.0,0.0001518,2]
[353432668,1739825441977,-500.0,0.0001518,2]
[353432670,1739825441986,-358.03773974,0.0001518,2]
[353432672,1739825441996,-500.0,0.0001518,2]
[353432675,1739825442005,-567.64,0.0001518,2]
[353432676,1739825442015,-500.0,0.0001518,2]
[353432679,1739825442025,-500.0,0.0001518,2]
[353432681,1739825442035,-500.0,0.0001518,2]
[353432683,1739825442044,-500.0,0.0001518,2]
[353432684,1739825442054,-500.0,0.0001518,2]
[353432687,1739825442064,-500.31939371,0.0001518,2]
[353432688,1739825442074,-500.0,0.0001518,2]
[353432690,1739825442083,-500.0,0.0001518,2]
[353432692,1739825442092,-513.42,0.0001518,2]
[353432694,1739825442102,-635.31,0.0001518,2]
[353432696,1739825442111,-500.0,0.0001518,2]
[353432698,1739825442121,-500.0,0.0001518,2]
[353432700,1739825442130,-500.0,0.0001518,2]
[353432702,1739825442140,-500.0,0.0001518,2]
[353432704,1739825442150,-500.0,0.0001518,2]
[353432706,1739825442160,-500.0,0.0001518,2]
[353432708,1739825442169,-500.0,0.0001518,2]
[353432710,1739825442179,-160.9799397,0.0001518,2]
[353432712,1739825442189,-500.0,0.0001518,2]
[353432714,1739825442198,-500.0,0.0001518,2]
[353432716,1739825442208,-510.21,0.0001518,2]
[353432718,1739825442217,-500.0,0.0001518,2]
[353432720,1739825442228,-500.0,0.0001518,2]
[353432723,1739825442238,-500.0,0.0001518,2]
[353432725,1739825442248,-500.0,0.0001518,2]
[353432727,1739825442257,-500.0,0.0001518,2]
[353432728,1739825442267,-508.62614444,0.0001518,2]
[353432731,1739825442276,-608.34,0.0001518,2]
[353432735,1739825442286,-500.0,0.0001518,2]
[353432737,1739825442295,-500.0,0.0001518,2]
[353432740,1739825442305,-500.0,0.0001518,2]
[353432742,1739825442315,-500.0,0.0001518,2]
[353432746,1739825442325,-500.0,0.0001518,2]
[353432751,1739825442335,-604.44,0.0001518,2]
[353432755,1739825442345,-500.0,0.0001518,2]
[353432759,1739825442354,-512.18085431,0.0001518,2]
[353432762,1739825442364,-500.0,0.0001518,2]
[353432766,1739825442374,-504.20457054,0.0001518,2]
[353432769,1739825442383,-500.0,0.0001518,2]
[353432772,1739825442392,-500.0,0.0001518,2]
[353432775,1739825442402,-502.91,0.0001518,2]
[353432777,1739825442412,-500.0,0.0001518,2]
[353432779,1739825442421,-500.0,0.0001518,2]
[353432781,1739825442431,-500.0,0.0001518,2]
[353432783,1739825442441,-500.0,0.0001518,2]
[353432785,1739825442451,-500.0,0.0001518,2]
[353432787,1739825442461,-501.58406037,0.0001518,2]
[353432790,1739825442472,-500.0,0.0001518,2]
[353432792,1739825442481,-502.77235847,0.0001518,2]
[353432794,1739825442491,-500.62881868,0.0001518,2]
[353432796,1739825442501,-500.0,0.0001518,2]
[353432798,1739825442512,-500.0,0.0001518,2]
[353432800,1739825442522,-500.0,0.0001518,2]
[353432802,1739825442532,-500.0,0.0001518,2]
[353432804,1739825442541,-500.0,0.0001518,2]
[353432806,1739825442551,-251.90601791,0.0001518,2]
[353432808,1739825442561,-500.0,0.0001518,2]
[353432810,1739825442571,-641.6581144,0.0001518,2]
[353432812,1739825442581,-500.0,0.0001518,2]
[353432814,1739825442592,-500.0,0.0001518,2]
[353432816,1739825442602,-500.0,0.0001518,2]
[353432818,1739825442611,-500.0,0.0001518,2]
[353432820,1739825442621,-565.44,0.0001518,2]
[353432822,1739825442630,-247.21550593,0.0001518,2]
[353432825,1739825442646,-252.78449407,0.0001518,2]
[353432826,1739825442656,-34.10103631,0.0001518,2]
[353432827,1739825442669,-469.75560826,0.0001518,2]
[353432828,1739825442679,-500.0,0.0001518,2]
[353432829,1739825442690,-500.0,0.0001518,2]
[353432830,1739825442700,-500.0,0.0001518,2]
[353432831,1739825442710,-500.0,0.0001518,2]
[353432832,1739825442720,-500.0,0.0001518,2]
[353432833,1739825442731,-500.0,0.0001518,2]
[353432834,1739825442744,-500.0,0.0001518,2]
[353432836,1739825442754,-500.0,0.0001518,2]
[353432838,1739825442763,-648.3,0.0001518,2]
[353432839,1739825442772,-500.0,0.0001518,2]
[353432841,1739825442783,-500.0,0.0001518,2]
[353432844,1739825442793,-500.0,0.0001518,2]
[353432845,1739825442802,-500.0,0.0001518,2]
[353432847,1739825442811,-500.0,0.0001518,2]
[353432850,1739825442821,-500.0,0.0001518,2]
[353432852,1739825442832,-536.24,0.0001518,2]
[353432853,1739825442841,-500.0,0.0001518,2]
[353432856,1739825442852,-500.0,0.0001518,2]
[353432858,1739825442862,-500.0,0.0001518,2]
[353432860,1739825442872,-1000.0,0.0001518,2]
[353432862,1739825442881,-500.0,0.0001518,2]
[353432864,1739825442891,-500.0,0.0001518,2]
[353432866,1739825442900,-636.76,0.0001518,2]
[353432868,1739825442910,-500.0,0.0001518,2]
[353432870,1739825442919,-500.0,0.0001518,2]
[353432872,1739825442929,-500.0,0.0001518,2]
[353432874,1739825442939,-500.0,0.0001518,2]
[353432876,1739825442949,-500.0,0.0001518,2]
[353432878,1739825442959,-500.0,0.0001518,2]
[353432880,1739825442971,-500.0,0.0001518,2]
[353432882,1739825442980,-625.08,0.0001518,2]
[353432884,1739825442990,-500.0,0.0001518,2]
[353432886,1739825442999,-500.0,0.0001518,2]
[353432888,1739825443009,-501.14,0.0001518,2]
[353432890,1739825443019,-500.0,0.0001518,2]
[353432892,1739825443028,-500.0,0.0001518,2]
[353432894,1739825443038,-504.19022145,0.0001518,2]
[353432896,1739825443048,-502.21304696,0.0001518,2]
[353432898,1739825443058,-500.0,0.0001518,2]
[353432900,1739825443068,-500.0,0.0001518,2]
[353432901,1739825443077,-500.0,0.0001518,2]
[353432904,1739825443087,-351.86214249,0.0001518,2]
[353432905,1739825443097,-509.00952392,0.0001518,2]
[353432908,1739825443107,-500.0,0.0001518,2]
[353432910,1739825443117,-533.13428809,0.0001518,2]
[353432912,1739825443127,-610.83,0.0001518,2]
[353432914,1739825443136,-500.0,0.0001518,2]
[353432915,1739825443145,-542.39,0.0001518,2]
[353432918,1739825443155,-500.0,0.0001518,2]
[353432920,1739825443165,-500.0,0.0001518,2]
[353432922,1739825443175,-500.0,0.0001518,2]
[353432924,1739825443185,-500.0,0.0001518,2]
[353432926,1739825443195,-166.58694596,0.0001518,2]
[353432928,1739825443205,-500.0,0.0001518,2]
[353432930,1739825443215,-503.67247178,0.0001518,2]
[353432932,1739825443226,-500.0,0.0001518,2]
[353432934,1739825443236,-500.0,0.0001518,2]
[353432936,1739825443246,-193.64033179,0.0001518,2]
[353432938,1739825443256,-500.0,0.0001518,2]